[Event "Titled Tuesday Blitz February 22 Early 2022"]
[White "Rich, Albert J"]
[Black "Magallanes, Rey Jomar"]
[WhiteFideId "2028735"]
[BlackFideId "5205948"]
[WhiteElo "2380"]
[BlackElo "2227"]
[Result "1-0"]
[Round "11"]
[TimeControl "180+1"]
[Date "2022.02.22"]
[WhiteClock "0:01:27"]
[BlackClock "0:01:13"]

1. d4 {[%clk 0:02:45]}  d5 {[%clk 0:02:59]} 2. Nc3 {[%clk 0:02:44]}  Nf6 {[%clk 0:02:58]} 3. Bg5 {[%clk 0:02:44]}  e6 {[%clk 0:02:56]} 4. e4 {[%clk 0:02:43]}  dxe4 {[%clk 0:02:54]} 5. Nxe4 {[%clk 0:02:41]}  Be7 {[%clk 0:02:55]} 6. Bxf6 {[%clk 0:02:38]}  Bxf6 {[%clk 0:02:54]} 7. Nf3 {[%clk 0:02:39]}  O-O {[%clk 0:02:50]} 8. Qd2 {[%clk 0:02:39]}  Be7 {[%clk 0:02:48]} 9. O-O-O {[%clk 0:02:39]}  Nc6 {[%clk 0:02:47]} 10. Kb1 {[%clk 0:02:38]}  f5 {[%clk 0:02:46]} 11. Nc3 {[%clk 0:02:33]}  Bf6 {[%clk 0:02:43]} 12. Bc4 {[%clk 0:02:33]}  Ne7 {[%clk 0:02:40]} 13. h4 {[%clk 0:02:27]}  Kh8 {[%clk 0:02:37]} 14. Ng5 {[%clk 0:02:25]}  Qd6 {[%clk 0:02:16]} 15. Qe2 {[%clk 0:02:23]}  Ng6 {[%clk 0:02:10]} 16. Qh5 {[%clk 0:02:19]}  h6 {[%clk 0:01:47]} 17. Qxg6 {[%clk 0:02:16]}  hxg5 {[%clk 0:01:41]} 18. hxg5+ {[%clk 0:02:16]}  Kg8 {[%clk 0:01:40]} 19. gxf6 {[%clk 0:02:11]}  Rxf6 {[%clk 0:01:36]} 20. Qh7+ {[%clk 0:01:51]}  Kf8 {[%clk 0:01:31]} 21. Qh8+ {[%clk 0:01:49]}  Ke7 {[%clk 0:01:28]} 22. Qxg7+ {[%clk 0:01:48]}  Rf7 {[%clk 0:01:29]} 23. Qg5+ {[%clk 0:01:48]}  Kd7 {[%clk 0:01:29]} 24. Rh6 {[%clk 0:01:43]}  Re7 {[%clk 0:01:25]} 25. Qf6 {[%clk 0:01:36]}  b6 {[%clk 0:01:19]} 26. d5 {[%clk 0:01:33]}  e5 {[%clk 0:01:17]} 27. Qxf5+ {[%clk 0:01:33]}  Kd8 {[%clk 0:01:16]} 28. Rxd6+ {[%clk 0:01:27]}  cxd6 {[%clk 0:01:14]} 29. Qf8+ {[%clk 0:01:27]}  Kc7 {[%clk 0:01:13]} 30. Qxe7+ {[%clk 0:01:27]} 1-0


[Site "https://www.chess.com"]

[Event "Titled Tuesday Blitz February 22 Early 2022"]
[White "Rudykh, Stepan"]
[Black "Piliczewski, Bogusz"]
[WhiteFideId "4180321"]
[BlackFideId "1104144"]
[WhiteElo "2109"]
[BlackElo "1896"]
[Result "1-0"]
[Round "11"]
[TimeControl "180+1"]
[Date "2022.02.22"]
[WhiteClock "0:01:38"]
[BlackClock "0:00:07"]

1. e4 {[%clk 0:03:00]}  c6 {[%clk 0:02:59]} 2. d4 {[%clk 0:03:00]}  d5 {[%clk 0:03:00]} 3. Nc3 {[%clk 0:03:00]}  dxe4 {[%clk 0:02:59]} 4. Nxe4 {[%clk 0:03:01]}  Bf5 {[%clk 0:02:59]} 5. Ng3 {[%clk 0:03:01]}  Bg6 {[%clk 0:03:00]} 6. h4 {[%clk 0:03:02]}  h6 {[%clk 0:03:00]} 7. Nf3 {[%clk 0:03:02]}  Nd7 {[%clk 0:02:59]} 8. h5 {[%clk 0:03:03]}  Bh7 {[%clk 0:02:59]} 9. Bd3 {[%clk 0:03:04]}  Bxd3 {[%clk 0:02:59]} 10. Qxd3 {[%clk 0:03:04]}  e6 {[%clk 0:02:58]} 11. Bf4 {[%clk 0:03:05]}  Qa5+ {[%clk 0:02:52]} 12. Bd2 {[%clk 0:03:04]}  Qc7 {[%clk 0:02:48]} 13. O-O-O {[%clk 0:03:05]}  Ngf6 {[%clk 0:02:45]} 14. Kb1 {[%clk 0:03:04]}  Be7 {[%clk 0:02:43]} 15. Ne4 {[%clk 0:03:02]}  Nxe4 {[%clk 0:02:42]} 16. Qxe4 {[%clk 0:03:03]}  Nf6 {[%clk 0:02:42]} 17. Qe2 {[%clk 0:03:03]}  O-O-O {[%clk 0:02:41]} 18. g3 {[%clk 0:03:03]}  Bd6 {[%clk 0:02:35]} 19. c4 {[%clk 0:03:01]}  c5 {[%clk 0:02:32]} 20. Bc3 {[%clk 0:02:56]}  Rhe8 {[%clk 0:02:27]} 21. Ne5 {[%clk 0:02:40]}  b6 {[%clk 0:01:50]} 22. f4 {[%clk 0:02:36]}  cxd4 {[%clk 0:01:37]} 23. Bxd4 {[%clk 0:02:33]}  Bc5 {[%clk 0:01:34]} 24. Bxc5 {[%clk 0:02:29]}  bxc5 {[%clk 0:01:22]} 25. Qf3 {[%clk 0:02:28]}  Qb7 {[%clk 0:00:59]} 26. Qxb7+ {[%clk 0:02:11]}  Kxb7 {[%clk 0:00:58]} 27. Nxf7 {[%clk 0:02:12]}  Rxd1+ {[%clk 0:00:52]} 28. Rxd1 {[%clk 0:02:13]}  Nxh5 {[%clk 0:00:53]} 29. Nd6+ {[%clk 0:02:12]}  Kc6 {[%clk 0:00:51]} 30. Nxe8 {[%clk 0:02:13]}  Nxg3 {[%clk 0:00:49]} 31. Rd6+ {[%clk 0:02:08]}  Kb7 {[%clk 0:00:48]} 32. Rxe6 {[%clk 0:02:07]}  h5 {[%clk 0:00:45]} 33. Nxg7 {[%clk 0:02:07]}  h4 {[%clk 0:00:44]} 34. Rh6 {[%clk 0:02:06]}  Ne4 {[%clk 0:00:39]} 35. Rxh4 {[%clk 0:02:05]}  Nd2+ {[%clk 0:00:39]} 36. Kc2 {[%clk 0:02:04]}  Nxc4 {[%clk 0:00:39]} 37. f5 {[%clk 0:02:02]}  Ne3+ {[%clk 0:00:39]} 38. Kd3 {[%clk 0:02:02]}  Nd5 {[%clk 0:00:28]} 39. Ke4 {[%clk 0:01:57]}  Nb4 {[%clk 0:00:23]} 40. a3 {[%clk 0:01:55]}  Nc6 {[%clk 0:00:18]} 41. f6 {[%clk 0:01:54]}  Nd8 {[%clk 0:00:16]} 42. Rh7 {[%clk 0:01:51]}  Kc6 {[%clk 0:00:14]} 43. Nf5 {[%clk 0:01:49]}  Ne6 {[%clk 0:00:11]} 44. Rxa7 {[%clk 0:01:44]}  Ng5+ {[%clk 0:00:08]} 45. Ke5 {[%clk 0:01:41]}  Kb6 {[%clk 0:00:07]} 46. Rg7 {[%clk 0:01:38]} 1-0


[Site "https://www.chess.com"]

[Event "Titled Tuesday Blitz February 22 Early 2022"]
[White "Sahin, Handenur"]
[Black "Petrovic, Aleksa"]
[WhiteFideId "6334865"]
[BlackFideId "967629"]
[WhiteElo "2165"]
[BlackElo "2139"]
[Result "1-0"]
[Round "11"]
[TimeControl "180+1"]
[Date "2022.02.22"]
[WhiteClock "0:00:31"]
[BlackClock "0:00:01"]

1. e4 {[%clk 0:03:00]}  g6 {[%clk 0:02:57]} 2. d4 {[%clk 0:03:00]}  Bg7 {[%clk 0:02:57]} 3. Nf3 {[%clk 0:02:58]}  d6 {[%clk 0:02:54]} 4. Nc3 {[%clk 0:02:59]}  c6 {[%clk 0:02:53]} 5. Bd3 {[%clk 0:02:57]}  Bg4 {[%clk 0:02:51]} 6. Be3 {[%clk 0:02:56]}  e5 {[%clk 0:02:49]} 7. dxe5 {[%clk 0:02:54]}  dxe5 {[%clk 0:02:49]} 8. h3 {[%clk 0:02:54]}  Bxf3 {[%clk 0:02:49]} 9. Qxf3 {[%clk 0:02:55]}  Nd7 {[%clk 0:02:41]} 10. O-O-O {[%clk 0:02:52]}  Qf6 {[%clk 0:02:27]} 11. Qe2 {[%clk 0:02:43]}  Bh6 {[%clk 0:02:24]} 12. Kb1 {[%clk 0:02:32]}  Nf8 {[%clk 0:02:16]} 13. Bc4 {[%clk 0:02:26]}  Bxe3 {[%clk 0:02:00]} 14. fxe3 {[%clk 0:02:22]}  Ne6 {[%clk 0:01:50]} 15. Rhf1 {[%clk 0:02:21]}  Qe7 {[%clk 0:01:49]} 16. Qf3 {[%clk 0:02:04]}  Kf8 {[%clk 0:01:41]} 17. Qg3 {[%clk 0:02:02]}  f6 {[%clk 0:01:39]} 18. Qxe5 {[%clk 0:02:01]}  Nc5 {[%clk 0:01:13]} 19. Qd4 {[%clk 0:01:54]}  Re8 {[%clk 0:01:03]} 20. Rf4 {[%clk 0:01:39]}  Kg7 {[%clk 0:00:59]} 21. Rdf1 {[%clk 0:01:38]}  Ne6 {[%clk 0:00:58]} 22. Bxe6 {[%clk 0:01:34]}  Qxe6 {[%clk 0:00:59]} 23. g4 {[%clk 0:01:33]}  g5 {[%clk 0:00:43]} 24. Rf5 {[%clk 0:01:28]}  h6 {[%clk 0:00:37]} 25. Qxa7 {[%clk 0:01:21]}  Re7 {[%clk 0:00:28]} 26. Qc5 {[%clk 0:01:12]}  h5 {[%clk 0:00:26]} 27. Qd4 {[%clk 0:01:09]}  Kg6 {[%clk 0:00:22]} 28. Ne2 {[%clk 0:01:00]}  Qxe4 {[%clk 0:00:17]} 29. gxh5+ {[%clk 0:00:49]}  Rxh5 {[%clk 0:00:14]} 30. Qd8 {[%clk 0:00:46]}  Re8 {[%clk 0:00:09]} 31. Rxf6+ {[%clk 0:00:39]}  Nxf6 {[%clk 0:00:08]} 32. Qxf6+ {[%clk 0:00:40]}  Kh7 {[%clk 0:00:08]} 33. Ng3 {[%clk 0:00:37]}  Qg6 {[%clk 0:00:06]} 34. Nxh5 {[%clk 0:00:35]}  Qxh5 {[%clk 0:00:05]} 35. Qf7+ {[%clk 0:00:34]}  Qxf7 {[%clk 0:00:05]} 36. Rxf7+ {[%clk 0:00:34]}  Kg6 {[%clk 0:00:05]} 37. Rxb7 {[%clk 0:00:35]}  Rxe3 {[%clk 0:00:05]} 38. a4 {[%clk 0:00:34]}  Rxh3 {[%clk 0:00:05]} 39. a5 {[%clk 0:00:35]}  g4 {[%clk 0:00:05]} 40. a6 {[%clk 0:00:35]}  g3 {[%clk 0:00:05]} 41. a7 {[%clk 0:00:34]}  g2 {[%clk 0:00:03]} 42. a8=Q {[%clk 0:00:34]}  g1=Q+ {[%clk 0:00:04]} 43. Ka2 {[%clk 0:00:34]}  Rh7 {[%clk 0:00:01]} 44. Qg8+ {[%clk 0:00:31]}  Rg7 {[%clk 0:00:01]} 45. Qxg7+ {[%clk 0:00:31]} 1-0


[Site "https://www.chess.com"]

[Event "Titled Tuesday Blitz February 22 Early 2022"]
[White "Sargissyan, Sargis"]
[Black "Kislov, Oleg"]
[WhiteFideId "13303210"]
[BlackFideId "13503774"]
[WhiteElo "2174"]
[BlackElo "2252"]
[Result "1-0"]
[Round "11"]
[TimeControl "180+1"]
[Date "2022.02.22"]
[WhiteClock "0:00:18"]
[BlackClock "0:00:44"]

1. e4 {[%clk 0:03:00]}  c5 {[%clk 0:02:59]} 2. Nf3 {[%clk 0:03:00]}  Nc6 {[%clk 0:02:59]} 3. d4 {[%clk 0:03:01]}  cxd4 {[%clk 0:02:59]} 4. Nxd4 {[%clk 0:03:01]}  e5 {[%clk 0:02:59]} 5. Nb5 {[%clk 0:02:59]}  d6 {[%clk 0:02:59]} 6. c4 {[%clk 0:02:54]}  Be7 {[%clk 0:02:58]} 7. N1c3 {[%clk 0:02:54]}  a6 {[%clk 0:02:57]} 8. Na3 {[%clk 0:02:54]}  f5 {[%clk 0:02:58]} 9. exf5 {[%clk 0:02:52]}  Bxf5 {[%clk 0:02:57]} 10. Bd3 {[%clk 0:02:53]}  Be6 {[%clk 0:02:55]} 11. O-O {[%clk 0:02:52]}  Nf6 {[%clk 0:02:55]} 12. Nc2 {[%clk 0:02:52]}  O-O {[%clk 0:02:54]} 13. Bg5 {[%clk 0:02:50]}  Rc8 {[%clk 0:02:46]} 14. Ne3 {[%clk 0:02:46]}  b5 {[%clk 0:02:43]} 15. cxb5 {[%clk 0:02:07]}  axb5 {[%clk 0:02:42]} 16. Bxb5 {[%clk 0:02:05]}  Nd4 {[%clk 0:02:39]} 17. Bd3 {[%clk 0:02:03]}  d5 {[%clk 0:02:36]} 18. Nc2 {[%clk 0:01:36]}  Nxc2 {[%clk 0:02:29]} 19. Bxc2 {[%clk 0:01:36]}  Qb6 {[%clk 0:01:52]} 20. Bxf6 {[%clk 0:01:32]}  Bxf6 {[%clk 0:01:48]} 21. Nxd5 {[%clk 0:01:32]}  Qxb2 {[%clk 0:01:46]} 22. Nxf6+ {[%clk 0:01:29]}  Rxf6 {[%clk 0:01:45]} 23. Bb3 {[%clk 0:01:28]}  Bxb3 {[%clk 0:01:35]} 24. Qxb3+ {[%clk 0:00:48]}  Qxb3 {[%clk 0:01:34]} 25. axb3 {[%clk 0:00:49]}  Rb8 {[%clk 0:01:33]} 26. Rfb1 {[%clk 0:00:43]}  Rfb6 {[%clk 0:01:32]} 27. Ra3 {[%clk 0:00:40]}  Kf7 {[%clk 0:01:31]} 28. g3 {[%clk 0:00:39]}  Ke6 {[%clk 0:01:28]} 29. Kg2 {[%clk 0:00:39]}  Rb4 {[%clk 0:01:27]} 30. Ra6+ {[%clk 0:00:38]}  Kf5 {[%clk 0:01:26]} 31. Ra7 {[%clk 0:00:34]}  Kf6 {[%clk 0:01:26]} 32. Rc1 {[%clk 0:00:31]}  R8b7 {[%clk 0:01:05]} 33. Rc6+ {[%clk 0:00:27]}  Kf5 {[%clk 0:01:03]} 34. Rxb7 {[%clk 0:00:24]}  Rxb7 {[%clk 0:01:03]} 35. Rc3 {[%clk 0:00:24]}  h5 {[%clk 0:01:02]} 36. Kf3 {[%clk 0:00:22]}  g5 {[%clk 0:01:00]} 37. h3 {[%clk 0:00:22]}  g4+ {[%clk 0:01:00]} 38. hxg4+ {[%clk 0:00:21]}  hxg4+ {[%clk 0:01:01]} 39. Ke3 {[%clk 0:00:22]}  Rb4 {[%clk 0:01:01]} 40. Kd2 {[%clk 0:00:20]}  Rd4+ {[%clk 0:00:49]} 41. Rd3 {[%clk 0:00:20]}  Re4 {[%clk 0:00:44]} 42. Re3 {[%clk 0:00:18]}  Rd4+ {[%clk 0:00:44]} 43. Kc3 {[%clk 0:00:18]}  Ke6 {[%clk 0:00:44]} 44. b4 {[%clk 0:00:18]}  Kd5 {[%clk 0:00:44]} 45. Rd3 {[%clk 0:00:18]} 1-0


[Site "https://www.chess.com"]

[Event "Titled Tuesday Blitz February 22 Early 2022"]
[White "Sargsyan, Anna M."]
[Black "Begunov, Konstantin"]
[WhiteFideId "13308130"]
[BlackFideId "4118510"]
[WhiteElo "2271"]
[BlackElo "2262"]
[Result "0-1"]
[Round "11"]
[TimeControl "180+1"]
[Date "2022.02.22"]
[WhiteClock "0:01:49"]
[BlackClock "0:00:46"]

1. d4 {[%clk 0:03:00]}  d5 {[%clk 0:02:59]} 2. c4 {[%clk 0:03:01]}  c6 {[%clk 0:02:59]} 3. Nf3 {[%clk 0:03:01]}  Nf6 {[%clk 0:02:59]} 4. Nc3 {[%clk 0:03:02]}  dxc4 {[%clk 0:03:00]} 5. a4 {[%clk 0:03:03]}  Bg4 {[%clk 0:02:59]} 6. Ne5 {[%clk 0:03:02]}  Bh5 {[%clk 0:02:59]} 7. Nxc4 {[%clk 0:03:00]}  e6 {[%clk 0:02:58]} 8. Qb3 {[%clk 0:02:59]}  Na6 {[%clk 0:02:58]} 9. Bg5 {[%clk 0:02:54]}  Nb4 {[%clk 0:02:56]} 10. a5 {[%clk 0:02:52]}  Qxd4 {[%clk 0:02:45]} 11. e3 {[%clk 0:02:53]}  Qd8 {[%clk 0:02:23]} 12. Ra4 {[%clk 0:02:40]}  c5 {[%clk 0:01:59]} 13. Be2 {[%clk 0:02:18]}  Bxe2 {[%clk 0:01:58]} 14. Nxe2 {[%clk 0:02:19]}  Nd3+ {[%clk 0:01:43]} 15. Kf1 {[%clk 0:02:19]}  Nb4 {[%clk 0:01:36]} 16. h4 {[%clk 0:02:12]}  Be7 {[%clk 0:01:34]} 17. Ra1 {[%clk 0:02:06]}  O-O {[%clk 0:01:32]} 18. Rh3 {[%clk 0:02:06]}  h6 {[%clk 0:01:31]} 19. Bf4 {[%clk 0:02:03]}  Nfd5 {[%clk 0:01:28]} 20. Be5 {[%clk 0:02:02]}  b5 {[%clk 0:01:05]} 21. axb6 {[%clk 0:02:01]}  axb6 {[%clk 0:01:05]} 22. Rd1 {[%clk 0:02:01]}  b5 {[%clk 0:00:57]} 23. e4 {[%clk 0:01:53]}  bxc4 {[%clk 0:00:55]} 24. Qxc4 {[%clk 0:01:49]}  Ne3+ {[%clk 0:00:53]} 25. fxe3 {[%clk 0:01:49]}  Qxd1+ {[%clk 0:00:52]} 26. Kf2 {[%clk 0:01:49]}  Nd3+ {[%clk 0:00:46]} 0-1


[Site "https://www.chess.com"]

[Event "Titled Tuesday Blitz February 22 Early 2022"]
[White "Sarkar, Justin"]
[Black "Reprintsev, Alexander"]
[WhiteFideId "2010011"]
[BlackFideId "14100541"]
[WhiteElo "2038"]
[BlackElo "2126"]
[Result "1-0"]
[Round "11"]
[TimeControl "180+1"]
[Date "2022.02.22"]
[WhiteClock "0:00:03"]
[BlackClock "0:00:02"]

1. e4 {[%clk 0:03:00]}  d5 {[%clk 0:02:58]} 2. exd5 {[%clk 0:02:59]}  Qxd5 {[%clk 0:02:42]} 3. Nc3 {[%clk 0:02:57]}  Qa5 {[%clk 0:02:42]} 4. d4 {[%clk 0:02:53]}  Nf6 {[%clk 0:02:42]} 5. Nf3 {[%clk 0:02:51]}  Nc6 {[%clk 0:02:41]} 6. Bd2 {[%clk 0:02:27]}  a6 {[%clk 0:02:11]} 7. Bc4 {[%clk 0:02:16]}  Qh5 {[%clk 0:01:58]} 8. Ne5 {[%clk 0:02:02]}  Bg4 {[%clk 0:01:54]} 9. Nxg4 {[%clk 0:01:54]}  Qxg4 {[%clk 0:01:50]} 10. Qxg4 {[%clk 0:01:50]}  Nxg4 {[%clk 0:01:50]} 11. Ne2 {[%clk 0:01:37]}  e6 {[%clk 0:01:28]} 12. a4 {[%clk 0:01:27]}  O-O-O {[%clk 0:01:14]} 13. c3 {[%clk 0:01:20]}  Bd6 {[%clk 0:00:29]} 14. h3 {[%clk 0:01:14]}  Nf6 {[%clk 0:00:22]} 15. O-O {[%clk 0:01:08]}  Ne4 {[%clk 0:00:19]} 16. Be3 {[%clk 0:01:02]}  Be7 {[%clk 0:00:19]} 17. b4 {[%clk 0:00:54]}  Nd6 {[%clk 0:00:19]} 18. Bd3 {[%clk 0:00:51]}  Nf5 {[%clk 0:00:19]} 19. Bxf5 {[%clk 0:00:43]}  exf5 {[%clk 0:00:19]} 20. b5 {[%clk 0:00:43]}  Nb8 {[%clk 0:00:19]} 21. c4 {[%clk 0:00:37]}  g5 {[%clk 0:00:15]} 22. f4 {[%clk 0:00:34]}  g4 {[%clk 0:00:14]} 23. Ng3 {[%clk 0:00:29]}  Rhe8 {[%clk 0:00:08]} 24. Nxf5 {[%clk 0:00:28]}  gxh3 {[%clk 0:00:08]} 25. gxh3 {[%clk 0:00:24]}  Bf6 {[%clk 0:00:08]} 26. Rad1 {[%clk 0:00:20]}  Re4 {[%clk 0:00:08]} 27. Kg2 {[%clk 0:00:17]}  Rg8+ {[%clk 0:00:09]} 28. Kf3 {[%clk 0:00:17]}  Re6 {[%clk 0:00:09]} 29. Rg1 {[%clk 0:00:15]}  Rge8 {[%clk 0:00:09]} 30. d5 {[%clk 0:00:13]}  Rxe3+ {[%clk 0:00:06]} 31. Nxe3 {[%clk 0:00:12]}  Nd7 {[%clk 0:00:07]} 32. d6 {[%clk 0:00:09]}  c6 {[%clk 0:00:07]} 33. bxc6 {[%clk 0:00:08]}  bxc6 {[%clk 0:00:07]} 34. Nf5 {[%clk 0:00:08]}  Nc5 {[%clk 0:00:05]} 35. Rde1 {[%clk 0:00:04]}  Rd8 {[%clk 0:00:03]} 36. Nh6 {[%clk 0:00:03]}  Rd7 {[%clk 0:00:01]} 37. Rg8+ {[%clk 0:00:02]}  Kb7 {[%clk 0:00:01]} 38. Rb1+ {[%clk 0:00:02]}  Ka7 {[%clk 0:00:02]} 39. Rf8 {[%clk 0:00:03]} 1-0


[Site "https://www.chess.com"]

[Event "Titled Tuesday Blitz February 22 Early 2022"]
[White "Shuvalov, Evgenij"]
[Black "Tasev, Dejan"]
[WhiteFideId "4187237"]
[BlackFideId "936618"]
[WhiteElo "2119"]
[BlackElo "2253"]
[Result "1-0"]
[Round "11"]
[TimeControl "180+1"]
[Date "2022.02.22"]
[WhiteClock "0:00:17"]
[BlackClock "0:00:47"]

1. Nf3 {[%clk 0:03:00]}  Nf6 {[%clk 0:02:59]} 2. c4 {[%clk 0:03:01]}  g6 {[%clk 0:03:00]} 3. Nc3 {[%clk 0:03:00]}  Bg7 {[%clk 0:03:00]} 4. e4 {[%clk 0:03:00]}  d6 {[%clk 0:03:00]} 5. d4 {[%clk 0:03:01]}  O-O {[%clk 0:02:59]} 6. Be2 {[%clk 0:03:02]}  c5 {[%clk 0:02:57]} 7. d5 {[%clk 0:02:59]}  b5 {[%clk 0:02:57]} 8. cxb5 {[%clk 0:02:56]}  a6 {[%clk 0:02:57]} 9. O-O {[%clk 0:02:51]}  Nbd7 {[%clk 0:02:56]} 10. a4 {[%clk 0:02:50]}  Ne8 {[%clk 0:02:53]} 11. Re1 {[%clk 0:02:48]}  Nc7 {[%clk 0:02:52]} 12. Bg5 {[%clk 0:02:36]}  f6 {[%clk 0:02:52]} 13. Be3 {[%clk 0:02:25]}  Bb7 {[%clk 0:02:51]} 14. Nd2 {[%clk 0:02:24]}  f5 {[%clk 0:02:49]} 15. exf5 {[%clk 0:02:15]}  Rxf5 {[%clk 0:02:48]} 16. Bg4 {[%clk 0:02:08]}  Rf8 {[%clk 0:02:46]} 17. Bg5 {[%clk 0:01:51]}  Ne5 {[%clk 0:02:42]} 18. Be2 {[%clk 0:01:44]}  axb5 {[%clk 0:02:36]} 19. Bxb5 {[%clk 0:01:39]}  h6 {[%clk 0:02:25]} 20. Bh4 {[%clk 0:01:36]}  g5 {[%clk 0:02:24]} 21. Bg3 {[%clk 0:01:37]}  Nxd5 {[%clk 0:02:15]} 22. Nc4 {[%clk 0:01:27]}  Nxc3 {[%clk 0:02:05]} 23. bxc3 {[%clk 0:01:28]}  Nxc4 {[%clk 0:01:49]} 24. Bxc4+ {[%clk 0:01:29]}  d5 {[%clk 0:01:50]} 25. Qb3 {[%clk 0:01:09]}  Bc6 {[%clk 0:01:21]} 26. Bb5 {[%clk 0:00:54]}  Bxb5 {[%clk 0:01:14]} 27. axb5 {[%clk 0:00:53]}  Rxa1 {[%clk 0:01:14]} 28. Rxa1 {[%clk 0:00:54]}  c4 {[%clk 0:01:13]} 29. Qb4 {[%clk 0:00:49]}  d4 {[%clk 0:01:10]} 30. Qxc4+ {[%clk 0:00:49]}  Kh8 {[%clk 0:01:09]} 31. Rd1 {[%clk 0:00:45]}  e5 {[%clk 0:01:08]} 32. cxd4 {[%clk 0:00:43]}  exd4 {[%clk 0:01:08]} 33. h3 {[%clk 0:00:36]}  Qf6 {[%clk 0:01:06]} 34. Qc5 {[%clk 0:00:29]}  h5 {[%clk 0:01:04]} 35. f3 {[%clk 0:00:28]}  g4 {[%clk 0:01:01]} 36. Qxh5+ {[%clk 0:00:27]}  Kg8 {[%clk 0:01:01]} 37. Qxg4 {[%clk 0:00:26]}  Rd8 {[%clk 0:00:55]} 38. Bh4 {[%clk 0:00:22]}  Qd6 {[%clk 0:00:46]} 39. Bxd8 {[%clk 0:00:22]}  Qxd8 {[%clk 0:00:47]} 40. Qe6+ {[%clk 0:00:21]}  Kh8 {[%clk 0:00:47]} 41. b6 {[%clk 0:00:19]}  d3 {[%clk 0:00:47]} 42. b7 {[%clk 0:00:17]} 1-0


[Site "https://www.chess.com"]

[Event "Titled Tuesday Blitz February 22 Early 2022"]
[White "Stanisz, Patryk"]
[Black "Sviridova, Vlada"]
[WhiteFideId "1123106"]
[BlackFideId "24109606"]
[WhiteElo "1876"]
[BlackElo "2101"]
[Result "1/2-1/2"]
[Round "11"]
[TimeControl "180+1"]
[Date "2022.02.22"]
[WhiteClock "0:00:07"]
[BlackClock "0:00:12"]

1. c4 {[%clk 0:03:00]}  c6 {[%clk 0:02:59]} 2. Nc3 {[%clk 0:02:56]}  d5 {[%clk 0:03:00]} 3. d4 {[%clk 0:02:56]}  Nf6 {[%clk 0:03:00]} 4. Nf3 {[%clk 0:02:56]}  dxc4 {[%clk 0:03:00]} 5. a4 {[%clk 0:02:56]}  Bf5 {[%clk 0:03:00]} 6. e3 {[%clk 0:02:56]}  e6 {[%clk 0:02:59]} 7. Bxc4 {[%clk 0:02:57]}  Bb4 {[%clk 0:02:59]} 8. O-O {[%clk 0:02:57]}  O-O {[%clk 0:03:00]} 9. h3 {[%clk 0:02:58]}  Nbd7 {[%clk 0:02:59]} 10. Qb3 {[%clk 0:02:58]}  a5 {[%clk 0:02:47]} 11. Na2 {[%clk 0:02:58]}  c5 {[%clk 0:02:23]} 12. Nxb4 {[%clk 0:02:53]}  cxb4 {[%clk 0:02:20]} 13. Nh4 {[%clk 0:02:51]}  Be4 {[%clk 0:02:19]} 14. f3 {[%clk 0:02:46]}  Bc6 {[%clk 0:02:18]} 15. g4 {[%clk 0:02:44]}  Nxg4 {[%clk 0:02:16]} 16. Bxe6 {[%clk 0:02:26]}  Qxh4 {[%clk 0:02:03]} 17. Bxg4 {[%clk 0:02:24]}  Nf6 {[%clk 0:02:01]} 18. e4 {[%clk 0:02:11]}  Qg3+ {[%clk 0:01:54]} 19. Kh1 {[%clk 0:02:11]}  Nxg4 {[%clk 0:01:29]} 20. hxg4 {[%clk 0:02:10]}  Bxe4 {[%clk 0:01:19]} 21. Qd1 {[%clk 0:01:46]}  Bd5 {[%clk 0:01:13]} 22. Qe2 {[%clk 0:01:26]}  Qh3+ {[%clk 0:01:11]} 23. Kg1 {[%clk 0:01:23]}  Rfe8 {[%clk 0:00:48]} 24. Qg2 {[%clk 0:01:21]}  Qxg2+ {[%clk 0:00:48]} 25. Kxg2 {[%clk 0:01:22]}  Re2+ {[%clk 0:00:48]} 26. Rf2 {[%clk 0:01:21]}  Rae8 {[%clk 0:00:48]} 27. Bf4 {[%clk 0:01:17]}  h6 {[%clk 0:00:45]} 28. Bc7 {[%clk 0:01:14]}  Bc4 {[%clk 0:00:40]} 29. Rb1 {[%clk 0:00:55]}  Rxf2+ {[%clk 0:00:39]} 30. Kxf2 {[%clk 0:00:55]}  Re2+ {[%clk 0:00:39]} 31. Kg3 {[%clk 0:00:55]}  Rd2 {[%clk 0:00:30]} 32. Bxa5 {[%clk 0:00:51]}  Rxd4 {[%clk 0:00:30]} 33. Bxb4 {[%clk 0:00:38]}  Bd3 {[%clk 0:00:30]} 34. Bc3 {[%clk 0:00:39]}  Rxa4 {[%clk 0:00:29]} 35. Rd1 {[%clk 0:00:36]}  Bc4 {[%clk 0:00:24]} 36. Rd8+ {[%clk 0:00:30]}  Kh7 {[%clk 0:00:24]} 37. Rb8 {[%clk 0:00:26]}  b5 {[%clk 0:00:19]} 38. b3 {[%clk 0:00:25]}  Bxb3 {[%clk 0:00:19]} 39. Rxb5 {[%clk 0:00:25]}  Be6 {[%clk 0:00:18]} 40. Re5 {[%clk 0:00:20]}  g5 {[%clk 0:00:17]} 41. Re3 {[%clk 0:00:20]}  Ra3 {[%clk 0:00:15]} 42. Bd4 {[%clk 0:00:19]}  Ra2 {[%clk 0:00:15]} 43. Be5 {[%clk 0:00:17]}  Rc2 {[%clk 0:00:14]} 44. Rc3 {[%clk 0:00:17]}  Re2 {[%clk 0:00:14]} 45. Bd4 {[%clk 0:00:16]}  Bd5 {[%clk 0:00:13]} 46. Re3 {[%clk 0:00:15]}  Rd2 {[%clk 0:00:14]} 47. Be5 {[%clk 0:00:14]}  Rd1 {[%clk 0:00:14]} 48. Bc3 {[%clk 0:00:14]}  Kg6 {[%clk 0:00:13]} 49. Be5 {[%clk 0:00:14]}  Rb1 {[%clk 0:00:13]} 50. Bc3 {[%clk 0:00:14]}  Rf1 {[%clk 0:00:12]} 51. Be5 {[%clk 0:00:14]}  Rg1+ {[%clk 0:00:12]} 52. Kf2 {[%clk 0:00:13]}  Rd1 {[%clk 0:00:12]} 53. Bc3 {[%clk 0:00:13]}  h5 {[%clk 0:00:12]} 54. gxh5+ {[%clk 0:00:14]}  Kxh5 {[%clk 0:00:13]} 55. Re5 {[%clk 0:00:13]}  Kg6 {[%clk 0:00:13]} 56. Re3 {[%clk 0:00:12]}  f6 {[%clk 0:00:11]} 57. Ke2 {[%clk 0:00:09]}  Rb1 {[%clk 0:00:09]} 58. Kf2 {[%clk 0:00:09]}  Rc1 {[%clk 0:00:09]} 59. Bd4 {[%clk 0:00:07]}  Bc4 {[%clk 0:00:08]} 60. Rc3 {[%clk 0:00:06]}  Rxc3 {[%clk 0:00:08]} 61. Bxc3 {[%clk 0:00:05]}  f5 {[%clk 0:00:08]} 62. Bd2 {[%clk 0:00:05]}  f4 {[%clk 0:00:08]} 63. Bc3 {[%clk 0:00:05]}  Kf5 {[%clk 0:00:09]} 64. Bg7 {[%clk 0:00:05]}  Kg6 {[%clk 0:00:09]} 65. Bf8 {[%clk 0:00:05]}  Kh5 {[%clk 0:00:10]} 66. Bd6 {[%clk 0:00:06]}  Kh4 {[%clk 0:00:10]} 67. Be7 {[%clk 0:00:06]}  Kh5 {[%clk 0:00:10]} 68. Bd8 {[%clk 0:00:07]}  Kg6 {[%clk 0:00:11]} 69. Be7 {[%clk 0:00:07]}  Kf5 {[%clk 0:00:12]} 70. Bd8 {[%clk 0:00:08]}  Kg6 {[%clk 0:00:11]} 71. Be7 {[%clk 0:00:08]}  Kf5 {[%clk 0:00:12]} 72. Bd8 {[%clk 0:00:07]}  Kg6 {[%clk 0:00:12]} 1/2-1/2


[Site "https://www.chess.com"]